Workbook

Sheet Mittelhilfstabelle
A2: Stunde | B2: Luftfeuchtigkeit | C2: Luftdruck | D2: Taupunkttemperatur | E2: Bewölkung | G2: Stunde | H2: Luftfeuchtigkeit | I2: Luftdruck | J2: Taupunkttemperatur | K2: Bewölkung
A3: 00 | B3: 90 | C3: 997.1 | D3: 0.4 | E3: 8 | G3: 00 | H3: 89 | I3: 1004.2 | J3: -4.8 | K3: 0
A4: 01 | B4: 91 | C4: 997.8 | D4: 0.2 | E4: 8 | G4: 01 | H4: 89 | I4: 1003.8 | J4: -5.2 | K4: 0
A5: 02 | B5: 90 | C5: 998.9 | D5: -0.1 | E5: 8 | G5: 02 | H5: 91 | I5: 1003.4 | J5: -4.8 | K5: 0
A6: 03 | B6: 91 | C6: 1000.1 | D6: -0.9 | E6: 8 | G6: 03 | H6: 91 | I6: 1002.7 | J6: -4.7 | K6: 0
A7: 04 | B7: 86 | C7: 1001 | D7: -1.7 | E7: 8 | G7: 04 | H7: 91 | I7: 1001.9 | J7: -4.6 | K7: 0
A8: 05 | B8: 88 | C8: 1002.3 | D8: -1.6 | E8: 8 | G8: 05 | H8: 91 | I8: 1001.6 | J8: -4.5 | K8: 2
A9: 06 | B9: 88 | C9: 1003.3 | D9: -2.2 | E9: 8 | G9: 06 | H9: 88 | I9: 1001.2 | J9: -4.9 | K9: 4
A10: 07 | B10: 84 | C10: 1004.1 | D10: -2.7 | E10: 6 | G10: 07 | H10: 88 | I10: 1000.8 | J10: -5.5 | K10: 3
A11: 08 | B11: 83 | C11: 1004.9 | D11: -2.5 | E11: 7 | G11: 08 | H11: 87 | I11: 1000.7 | J11: -5.9 | K11: 6
A12: 09 | B12: 84 | C12: 1005.5 | D12: -2.3 | E12: 7 | G12: 09 | H12: 84 | I12: 1000.7 | J12: -5.1 | K12: 7
A13: 10 | B13: 83 | C13: 1006.1 | D13: -1.6 | E13: 8 | G13: 10 | H13: 81 | I13: 1000.7 | J13: -4.3 | K13: 7
A14: 11 | B14: 82 | C14: 1006.7 | D14: -1.5 | E14: 8 | G14: 11 | H14: 77 | I14: 1000.5 | J14: -3.9 | K14: 6
A15: 12 | B15: 80 | C15: 1006.5 | D15: -1.3 | E15: 8 | G15: 12 | H15: 71 | I15: 1000.2 | J15: -3.7 | K15: 7
A16: 13 | B16: 79 | C16: 1006.5 | D16: -1.2 | E16: 8 | G16: 13 | H16: 71 | I16: 999.5 | J16: -3.6 | K16: 7
A17: 14 | B17: 79 | C17: 1006.5 | D17: -1.2 | E17: 8 | G17: 14 | H17: 70 | I17: 999.2 | J17: -3.1 | K17: 7
A18: 15 | B18: 78 | C18: 1006.3 | D18: -1.3 | E18: 8 | G18: 15 | H18: 74 | I18: 999.3 | J18: -3.2 | K18: 7
A19: 16 | B19: 79 | C19: 1006.3 | D19: -1.3 | E19: 7 | G19: 16 | H19: 77 | I19: 999.4 | J19: -3 | K19: 7
A20: 17 | B20: 80 | C20: 1006.3 | D20: -1.6 | E20: 6 | G20: 17 | H20: 79 | I20: 1001.2 | J20: -2.8 | K20: 7
A21: 18 | B21: 81 | C21: 1006.2 | D21: -2.1 | E21: 4 | G21: 18 | H21: 78 | I21: 1000.8 | J21: -2.8 | K21: 7
A22: 19 | B22: 81 | C22: 1006.1 | D22: -3.1 | E22: 3 | G22: 19 | H22: 81 | I22: 1000.6 | J22: -2.6 | K22: 5
A23: 20 | B23: 80 | C23: 1005.9 | D23: -3.4 | E23: 2 | G23: 20 | H23: 83 | I23: 1000.9 | J23: -2.6 | K23: 6
A24: 21 | B24: 82 | C24: 1005.7 | D24: -4.3 | E24: 2 | G24: 21 | H24: 82 | I24: 1000.9 | J24: -2.6 | K24: 6
A25: 22 | B25: 85 | C25: 1005.2 | D25: -4.5 | E25: 2 | G25: 22 | H25: 84 | I25: 1000.4 | J25: -2.9 | K25: 6
A26: 23 | B26: 87 | C26: 1004.6 | D26: -4.8 | E26: 2 | G26: 23 | H26: 85 | I26: 1000.2 | J26: -3.1 | K26: 7
A27: Mittel | B27: =ROUND(AVERAGE(B3:B26),1) -> 83.8 | C27: =ROUND(AVERAGE(C3:C26),1) -> 1004.2 | D27: =AVERAGE(D3:D26) -> -1.941666667 | E27: =AVERAGE(E3:E26) -> 6.333333333 | G27: Mittel | H27: =ROUND(AVERAGE(H3:H26),1) -> 82.6 | I27: =ROUND(AVERAGE(I3:I26),1) -> 1001 | J27: =AVERAGE(J3:J26) -> -3.925 | K27: =ROUND(AVERAGE(K3:K26),1) -> 4.8
D29: 2019-01-29 | J29: 2019-01-30
A32: Stunde | B32: Luftfeuchtigkeit | C32: Luftdruck | D32: Taupunkttemperatur | E32: Bewölkung | G32: Stunde | H32: Luftfeuchtigkeit | I32: Luftdruck | J32: Taupunkttemperatur | K32: Bewölkung
A33: 00 | B33: 78 | C33: 1001 | D33: -3.7 | E33: 7 | G33: 00
A34: 01 | B34: 79 | C34: 1000.8 | D34: -3.3 | E34: 7 | G34: 01
A35: 02 | B35: 80 | C35: 1001 | D35: -3.4 | E35: 7 | G35: 02
A36: 03 | B36: 81 | C36: 1001.1 | D36: -3.4 | E36: 7 | G36: 03
A37: 04 | B37: 81 | C37: 1001.1 | D37: -3.6 | E37: 7 | G37: 04
A38: 05 | B38: 84 | C38: 1001.2 | D38: -3.9 | E38: 6 | G38: 05
A39: 06 | B39: 86 | C39: 1001.2 | D39: -4 | E39: 7 | G39: 06
A40: 07 | B40: 86 | C40: 1001.5 | D40: -4 | E40: 7 | G40: 07
A41: 08 | B41: 87 | C41: 1001.9 | D41: -4.1 | E41: 7 | G41: 08
A42: 09 | B42: 88 | C42: 1002.1 | D42: -3.7 | E42: 6 | G42: 09
A43: 10 | B43: 82 | C43: 1002.2 | D43: -2.6 | E43: 5 | G43: 10
A44: 11 | B44: 80 | C44: 1002.3 | D44: -2.7 | E44: 3 | G44: 11
A45: 12 | B45: 75 | C45: 1002 | D45: -2.5 | E45: 3 | G45: 12
A46: 13 | B46: 71 | C46: 1001.6 | D46: -2.2 | E46: 3 | G46: 13
A47: 14 | B47: 65 | C47: 1001.1 | D47: -3 | E47: 2 | G47: 14
A48: 15 | B48: 71 | C48: 1001.1 | D48: -2.6 | E48: 5 | G48: 15
A49: 16 | B49: 75 | C49: 1001.4 | D49: -2.6 | E49: 6 | G49: 16
A50: 17 | B50: 79 | C50: 1001.2 | D50: -2.8 | E50: 6 | G50: 17
A51: 18 | B51: 78 | C51: 1001 | D51: -2.6 | E51: 6 | G51: 18
A52: 19 | B52: 81 | C52: 1000.6 | D52: -2.8 | E52: 6 | G52: 19
A53: 20 | B53: 83 | C53: 1000.9 | D53: -2.6 | E53: 4 | G53: 20
A54: 21 | B54: 82 | C54: 1000.9 | D54: -2.6 | E54: 3 | G54: 21
A55: 22 | B55: 84 | C55: 1000.4 | D55: -3.1 | E55: 3 | G55: 22
A56: 23 | B56: 85 | C56: 1000.2 | D56: -2.9 | E56: 3 | G56: 23
A57: Mittel | B57: =ROUND(AVERAGE(B33:B56),1) -> 80 | C57: =ROUND(AVERAGE(C33:C56),1) -> 1001.2 | D57: =ROUND(AVERAGE(D33:D56),1) -> -3.1 | E57: =ROUND(AVERAGE(E33:E56),1) -> 5.3 | G57: Mittel | H57: =ROUND(AVERAGE(H33:H56),1) ->  | I57: =ROUND(AVERAGE(I33:I56),1) ->  | J57: =ROUND(AVERAGE(J33:J56),1) ->  | K57: =ROUND(AVERAGE(K33:K56),1) -> 
D59: 2019-01-31 | J59: 2019-02-01

Sheet Kurztab.
A2: Wetterwarte: Köttewitz | L2: Monat: | M2: Januar | R2: Jahr: | U2: 2019
A4: Dat. | B4: TTT | C4: TxTx | D4: TnTn | E4: Tg | F4: Umin. | G4: UU | H4: NN | I4: RRRR | J4: Art | L4: sss | M4: PPPP | N4: eee | O4: fff | R4: Tage mit | V4: fk | W4: Summe
J5: * | O5: Km/h | P5: SS | Q5: Art ( D ) | R5: RR | S5: Ge | T5: Bf6 | U5: Bf8 | V5: Km/h | W5: Gewitter
A6: 01. | B6: 6.4 | C6: 7.9 | D6: 2.8 | E6: 1.7 | F6: 72 | G6: 84 | H6: 7.3 | I6: 0.8 | J6: l | L6: 0.4 | M6: 1020.8 | N6: 4 | O6: 16 | P6: 0 | R6: 1 | T6: 1 | U6: 1 | V6: 64 | Z6: max >=30,0°C | AA6: max >=25,0°C | AB6: max <0,0°C | AC6: RR >=0,1 mm | AD6: RR >=1,0 mm | AE6: RR >=3,0 mm | AF6: RR >=10,0 mm | AG6: RR >=20,0 mm
A7: 02. | B7: 0.8 | C7: 2.8 | D7: -1.2 | E7: 1.7 | F7: 63 | G7: 79 | H7: 7 | I7: 0.9 | J7: lT | L7: . | M7: 1023.2 | N7: -2.3 | O7: 16 | P7: 0 | R7: 1 | T7: 1 | U7: 1 | V7: 63 | Z7: =COUNTIF(C6:C15,">=30") -> 0 | AA7: =COUNTIF(C6:C15,">=25") -> 0 | AB7: =COUNTIF(C6:C15,"<0") -> 1 | AC7: =COUNTIF(I6:I15,">=0,1") -> 10 | AD7: =COUNTIF(I6:I15,">=1") -> 6 | AE7: =COUNTIF(I6:I15,">=3") -> 5 | AF7: =COUNTIF(I6:I15,">=10") -> 2 | AG7: =COUNTIF(I6:I15,">=20") -> 0
A8: 03. | B8: -1.6 | C8: -0.4 | D8: -3.4 | E8: -5 | F8: 68 | G8: 83 | H8: 4.5 | I8: 0.2 | J8: T | L8: . | M8: 1032.6 | N8: -4.1 | O8: 10 | P8: 0 | Q8: F | R8: 1 | T8: 1 | V8: 42 | Z8: =COUNTIF(C18:C27,">=30") -> 0 | AA8: =COUNTIF(C18:C27,">=25") -> 0 | AB8: =COUNTIF(C18:C27,"<0") -> 0 | AC8: =COUNTIF(I18:I27,">=0,1") -> 7 | AD8: =COUNTIF(I18:I27,">=1") -> 5 | AE8: =COUNTIF(I18:I27,">=3") -> 3 | AF8: =COUNTIF(I18:I27,">=10") -> 0 | AG8: =COUNTIF(I18:I27,">=20") -> 0
A9: 04. | B9: -0.4 | C9: 2.8 | D9: -4.3 | E9: -6.1 | F9: 84 | G9: 90 | H9: 7.3 | I9: 3.2 | J9: lT | L9: . | M9: 1030.1 | N9: -2 | O9: 10 | P9: 1 | Q9: T | R9: 1 | T9: 1 | V9: 48 | Z9: =COUNTIF(C30:C40,">=30") -> 0 | AA9: =COUNTIF(C30:C40,">=25") -> 0 | AB9: =COUNTIF(C30:C40,"<0") -> 5 | AC9: =COUNTIF(I30:I40,">=0,1") -> 5 | AD9: =COUNTIF(I30:I40,">=1") -> 2 | AE9: =COUNTIF(I30:I40,">=3") -> 1 | AF9: =COUNTIF(I30:I40,">=10") -> 0 | AG9: =COUNTIF(I30:I40,">=20") -> 0
A10: 05. | B10: 4.6 | C10: 6.5 | D10: 2.7 | E10: 2.2 | F10: 91 | G10: 94 | H10: 7.9 | I10: 8 | J10: l | L10: . | M10: 1020.1 | N10: 3.8 | O10: 13 | P10: 0 | R10: 1 | T10: 1 | V10: 47
A11: 06. | B11: 0.9 | C11: 2.9 | D11: 0.1 | E11: 0 | F11: 78 | G11: 91 | H11: 7.5 | I11: 0.5 | J11: lT | L11: . | M11: 1027.3 | N11: -0.4 | O11: 5 | P11: 0 | R11: 1 | V11: 37 | Z11: min <0,0°C | AA11: min <0-10,0°C | AB11: min >20°C | AC11: rel.Lf. >=70% | AE11: rel.Lf. <=40%
A12: 07. | B12: 2.4 | C12: 4.8 | D12: 0.5 | E12: 0 | F12: 95 | G12: 95 | H12: 8 | I12: 5.7 | J12: l | L12: . | M12: 1027.6 | N12: 1.5 | O12: 4 | P12: 0 | R12: 1 | V12: 27 | Z12: =COUNTIF(D6:D15,"<0") -> 4 | AA12: =COUNTIF(D6:D15,"<=-10") -> 0 | AB12: =COUNTIF(D6:D15,">=20") -> 0 | AC12: =COUNTIF(F6:F15,">=70") -> 8 | AE12: =COUNTIF(F6:F15,"<=40") -> 0
A13: 08. | B13: 3.8 | C13: 5.1 | D13: 0.8 | E13: 0 | F13: 81 | G13: 88 | H13: 7.9 | I13: 13.1 | J13: lT | L13: 0.1 | M13: 1006.3 | N13: 2.2 | O13: 18 | P13: 0 | R13: 1 | T13: 1 | V13: 56 | Z13: =COUNTIF(D18:D27,"<0") -> 5 | AA13: =COUNTIF(D18:D27,"<=-10") -> 0 | AB13: =COUNTIF(D18:D27,">=20") -> 0 | AC13: =COUNTIF(F18:F27,">=70") -> 6 | AE13: =COUNTIF(F18:F27,"<=40") -> 0
A14: 09. | B14: 0.3 | C14: 1.1 | D14: 0.1 | E14: 0 | F14: 93 | G14: 95.1 | H14: 8 | I14: 13.2 | J14: lT | L14: . | M14: 1005.4 | N14: -0.4 | O14: 12 | P14: 4 | Q14: T | R14: 1 | T14: 1 | V14: 47 | Z14: =COUNTIF(D30:D40,"<0") -> 9 | AA14: =COUNTIF(D30:D40,"<=-10") -> 0 | AB14: =COUNTIF(D30:D40,">=20") -> 0 | AC14: =COUNTIF(F30:F40,">=70") -> 7 | AE14: =COUNTIF(F30:F40,"<=40") -> 0
A15: 10. | B15: -0.1 | C15: 0.7 | D15: -1.9 | E15: -2.8 | F15: 88 | G15: 93 | H15: 7.5 | I15: 1.1 | J15: Tr | L15: 0.5 | M15: 1020.6 | N15: -1 | O15: 6 | P15: 12 | Q15: T | R15: 1 | V15: 27
A16: Su | B16: =SUM(B6:B15) -> 17.1 | C16: =SUM(C6:C15) -> 34.2 | D16: =SUM(D6:D15) -> -3.8 | E16: =SUM(E6:E15) -> -8.3 | F16: XXX | G16: XXX | H16: XXX | I16: =SUM(I6:I15) -> 46.7 | J16: XX | L16: =SUM(L6:L15) -> 1 | M16: XXX | N16: XXX | O16: XXX | P16: XXX | Q16: X | R16: =SUM(R6:R15) -> 10 | S16: =SUM(S6:S15) -> 0 | T16: =SUM(T6:T15) -> 7 | U16: =SUM(U6:U15) -> 2 | V16: XXX | Z16: ohne Sonne | AA16: Son. 0,1-0,9 | AB16: Son. >=10,0 | AC16: Sch. >=0 cm | AD16: Sch. >=3 cm | AE16: Sch. >=10 cm
A17: Mi | B17: =AVERAGE(B6:B15) -> 1.71 | C17: =AVERAGE(C6:C15) -> 3.42 | D17: -0.38 | E17: -0.83 | F17: 81.3 | G17: 89.21 | H17: 7.29 | I17: 4.67 | J17: XX | L17: =AVERAGE(L6:L15) -> 0.3333333333 | M17: =AVERAGE(M6:M15) -> 1021.4 | N17: =AVERAGE(N6:N15) -> 0.13 | O17: =AVERAGE(O6:O15) -> 11 | P17: =AVERAGE(P6:P15) -> 1.7 | Q17: X | R17: XX | S17: XX | T17: XX | U17: XX | V17: =AVERAGE(V6:V15) -> 45.8 | Z17: =COUNTIF(L6:L15,".") -> 7 | AA17: =COUNTIF(L6:L15,"<1") -> 3 | AB17: =COUNTIF(L6:L15,">=10") -> 0 | AC17: =COUNTIF(P6:P15,">=0,1") -> 3 | AD17: =COUNTIF(P6:P15,">=3") -> 2 | AE17: =COUNTIF(P6:P15,">=10") -> 1
A18: 11. | B18: -0.2 | C18: 2.7 | D18: -2.5 | E18: -2.8 | F18: 84 | G18: 89 | H18: 7.8 | I18: 4.8 | J18: lT | L18: . | M18: 1019.9 | N18: -1.9 | O18: 10 | P18: 10 | Q18: T | R18: 1 | T18: 1 | V18: 44 | Z18: =COUNTIF(L18:L27,".") -> 3 | AA18: =COUNTIF(L18:L27,"<1") -> 5 | AB18: =COUNTIF(L18:L27,">=10") -> 0 | AC18: =COUNTIF(P18:P27,">=0,1") -> 4 | AD18: =COUNTIF(P18:P27,">=3") -> 2 | AE18: =COUNTIF(P18:P27,">=10") -> 1
A19: 12. | B19: 3.4 | C19: 4.5 | D19: 2.6 | E19: 1.7 | F19: 83 | G19: 89 | H19: 7.9 | I19: 2 | J19: l | L19: 0.2 | M19: 1013.3 | N19: 1.8 | O19: 15 | P19: 6 | Q19: D | R19: 1 | T19: 1 | V19: 45 | Z19: =COUNTIF(L30:L40,".") -> 2 | AA19: =COUNTIF(L30:L40,"<1") -> 3 | AB19: =COUNTIF(L30:L40,">=10") -> 0 | AC19: =COUNTIF(P30:P40,">=0,1") -> 3 | AD19: =COUNTIF(P30:P40,">=3") -> 1 | AE19: =COUNTIF(P30:P40,">=10") -> 0
A20: 13. | B20: 4.9 | C20: 7.1 | D20: 3.5 | E20: 2.8 | F20: 82 | G20: 88 | H20: 7.9 | I20: 5.4 | J20: l | L20: . | M20: 999.8 | N20: 3.1 | O20: 18 | P20: 0 | R20: 1 | T20: 1 | V20: 72
A21: 14. | B21: 1.8 | C21: 5.6 | D21: -0.9 | E21: -2.2 | F21: 67 | G21: 81 | H21: 5.9 | I21: 1.4 | J21: lT | L21: 0.3 | M21: 1002.2 | N21: -1.2 | O21: 19 | P21: 0 | R21: 1 | T21: 1 | U21: 1 | V21: 66 | Z21: Max TT | AA21: Max TxTx | AB21: Min TgTg | AC21: Max RR
A22: 15. | B22: 2.4 | C22: 4.6 | D22: 0 | E22: -0.6 | F22: 74 | G22: 83 | H22: 7.8 | I22: 3.6 | J22: l | L22: 0.1 | M22: 1012.5 | N22: -0.3 | O22: 19.3 | P22: 1 | Q22: T | R22: 1 | T22: 1 | V22: 56 | Z22: =MAX(B6:B15,B18:B27,B30:B40) -> 6.4 | AA22: =MAX(C6:C15,C18:C27,C30:C40) -> 7.9 | AB22: =MIN(E6:E15,E18:E27,E30:E40) -> -10.6 | AC22: =MAX(I6:I15,I18:I27,I30:I40) -> 13.2
A23: 16. | B23: 3.9 | C23: 6.3 | D23: 0.9 | E23: -1.1 | F23: 76 | G23: 85 | H23: 7.7 | I23: 0.1 | J23: l | L23: . | M23: 1010.1 | N23: 1.6 | O23: 12 | P23: 0 | R23: 1 | T23: 1 | V23: 50 | Z23: Min TT | AA23: Min TnTn | AB23: Min U14 | AC23: Max SS
A24: 17. | B24: 4.8 | C24: 6.9 | D24: 0.9 | E24: -1.1 | F24: 70 | G24: 77 | H24: 6.3 | I24: 0.2 | J24: lT | L24: 0.1 | M24: 1002.9 | N24: 1.1 | O24: 12 | P24: 0 | R24: 1 | T24: 1 | V24: 56 | Z24: =MIN(B6:B15,B18:B27,B30:B40) -> -6.2 | AA24: =MIN(D6:D15,D18:D27,D30:D40) -> -9.4 | AB24: =MIN(F6:F15,F18:F27,F30:F40) -> 62 | AC24: =MAX(P6:P15,P18:P27,P30:P40) -> 12
A25: 18. | B25: -0.8 | C25: 2.3 | D25: -4.3 | E25: -5.6 | F25: 69 | G25: 76.7 | H25: 4.9 | I25: . | L25: 0.1 | M25: 1016.3 | N25: -4.2 | O25: 8 | P25: 1 | Q25: T | T25: 1 | V25: 40
A26: 19. | B26: -3.5 | C26: 1.2 | D26: -6.7 | E26: -7.2 | F26: 62 | G26: 81 | H26: 4.8 | I26: . | L26: 3.3 | M26: 1021.1 | N26: -6.4 | O26: 3 | P26: 0 | V26: 16
A27: 20. | B27: -4.2 | C27: 0.3 | D27: -7.5 | E27: -8.3 | F27: 69 | G27: 83 | H27: 1 | I27: . | L27: 3.7 | M27: 1019.6 | N27: -6.7 | O27: 2 | P27: 0 | V27: 13
A28: Su | B28: =SUM(B18:B27) -> 12.5 | C28: =SUM(C18:C27) -> 41.5 | D28: =SUM(D18:D27) -> -14 | E28: =SUM(E18:E27) -> -24.4 | F28: XXX | G28: XXX | H28: XXX | I28: =SUM(I18:I27) -> 17.5 | J28: XX | L28: =SUM(L18:L27) -> 7.8 | M28: XXX | N28: XXX | O28: XXX | P28: XXX | Q28: X | R28: =SUM(R18:R27) -> 7 | S28: =SUM(S18:S27) -> 0 | T28: =SUM(T18:T27) -> 8 | U28: =SUM(U18:U27) -> 1 | V28: XXX
A29: Mi | B29: =AVERAGE(B18:B27) -> 1.25 | C29: =AVERAGE(C18:C27) -> 4.15 | D29: -1.4 | E29: -2.44 | F29: 73.6 | G29: 83.27 | H29: 6.2 | I29: 2.5 | J29: XX | L29: =AVERAGE(L18:L27) -> 1.114285714 | M29: =AVERAGE(M18:M27) -> 1011.77 | N29: =AVERAGE(N18:N27) -> -1.31 | O29: =AVERAGE(O18:O27) -> 11.83 | P29: =AVERAGE(P18:P27) -> 1.8 | Q29: X | R29: XX | S29: XX | T29: XX | U29: XX | V29: =AVERAGE(V18:V27) -> 45.8
A30: 21. | B30: -6.2 | C30: -2 | D30: -9.1 | E30: -10 | F30: 83 | G30: 88 | H30: 2.3 | I30: . | L30: 3.2 | M30: 1023.3 | N30: -7.8 | O30: 1 | P30: 0 | V30: 11
A31: 22. | B31: -5.9 | C31: -1.1 | D31: -9.4 | E31: -10 | F31: 74 | G31: 85 | H31: 0.8 | I31: . | L31: 3.7 | M31: 1014 | N31: -8.1 | O31: 4 | P31: 0 | V31: 26
A32: 23. | B32: -5.9 | C32: -1.4 | D32: -9.1 | E32: -10.6 | F32: 62 | G32: 82 | H32: 2.3 | I32: . | L32: 3.8 | M32: 1004.7 | N32: -8.6 | O32: 7 | P32: 0 | V32: 26
A33: 24. | B33: -5.3 | C33: -3.3 | D33: -8.5 | E33: -7.8 | F33: 77 | G33: 85 | H33: 7.3 | I33: 0.1 | J33: T | L33: 0.1 | M33: 1011.3 | N33: -7.5 | O33: 1 | P33: 0 | R33: 1 | V33: 13
A34: 25. | B34: -3.9 | C34: -2.4 | D34: -5.6 | E34: -5.6 | F34: 72 | G34: 82 | H34: 7.8 | I34: 2.4 | J34: T | L34: 0.5 | M34: 1015.5 | N34: -6.7 | O34: 2 | P34: 0.1 | Q34: T | R34: 1 | V34: 23
A35: 26. | B35: 1.3 | C35: 4.2 | D35: -3.1 | E35: -3.3 | F35: 77 | G35: 89 | H35: 8 | I35: 8.4 | J35: lT | L35: . | M35: 1005.7 | N35: -0.4 | O35: 9 | P35: 5 | Q35: T | R35: 1 | T35: 1 | V35: 42
A36: 27. | B36: 4.3 | C36: 6 | D36: 2.6 | E36: 0.6 | F36: 78 | G36: 83 | H36: 6.8 | I36: 0.1 | J36: l | L36: 0.6 | M36: 993.1 | N36: 1.6 | O36: 15 | P36: 0 | R36: 1 | T36: 1 | V36: 42
A37: 28. | B37: 3.4 | C37: 5.8 | D37: 1.8 | E37: 0.6 | F37: 64 | G37: 78 | H37: 7.2 | I37: 0.6 | J37: lT | L37: 1.7 | M37: 993.1 | N37: -0.1 | O37: 9 | P37: 0 | R37: 1 | V37: 34
A38: 29. | B38: 0.4 | C38: 2.2 | D38: -3.3 | E38: -4.4 | F38: 77 | G38: 84 | H38: 6.3 | I38: 0 | J38: l | L38: . | M38: 1004.2 | N38: -1.9 | O38: 7 | P38: 1 | Q38: T | V38: 37
A39: 30. | B39: -1.1 | C39: 2 | D39: -4.2 | E39: -5 | F39: 69 | G39: 83 | H39: 4.8 | I39: . | L39: 4 | M39: 1001 | N39: -3.9 | O39: 10 | P39: 0 | V39: 37
A40: 31. | B40: 0 | C40: 3.3 | D40: -2.2 | E40: -2.8 | F40: 64 | G40: 80 | H40: 5.3 | I40: . | L40: 3.5 | M40: 1001.2 | N40: -3.1 | O40: 6 | P40: 0 | V40: 31
A41: Su | B41: =SUM(B30:B40) -> -18.9 | C41: =SUM(C30:C40) -> 13.3 | D41: =SUM(D30:D40) -> -50.1 | E41: =SUM(E30:E40) -> -58.3 | F41: XXX | G41: XXX | H41: XXX | I41: =SUM(I30:I40) -> 11.6 | J41: XX | L41: =SUM(L30:L40) -> 21.1 | M41: XXX | N41: XXX | O41: XXX | P41: XXX | Q41: X | R41: =SUM(R30:R40) -> 5 | S41: =SUM(S30:S40) -> 0 | T41: =SUM(T30:T40) -> 2 | U41: =SUM(U30:U40) -> 0 | V41: XXX
A42: Mi | B42: =AVERAGE(B30:B40) -> -1.718181818 | C42: =AVERAGE(C30:C40) -> 1.209090909 | D42: -4.554545455 | E42: -5.3 | F42: 72.45454545 | G42: 83.54545455 | H42: 5.354545455 | I42: 1.933333333 | J42: XX | L42: =AVERAGE(L30:L40) -> 2.344444444 | M42: =AVERAGE(M30:M40) -> 1006.1 | N42: =AVERAGE(N30:N40) -> -4.227272727 | O42: =AVERAGE(O30:O40) -> 6.454545455 | P42: =AVERAGE(P30:P40) -> 0.5545454545 | Q42: X | R42: XX | S42: XX | T42: XX | U42: XX | V42: =AVERAGE(V30:V40) -> 29.27272727
A43: MSu | B43: =SUM(B16+B28+B41) -> 10.7 | C43: =SUM(C16+C28+C41) -> 89 | D43: =SUM(D16+D28+D41) -> -67.9 | E43: =SUM(E16+E28+E41) -> -91 | F43: XXX | G43: XXX | H43: XXX | I43: =SUM(I16+I28+I41) -> 75.8 | J43: XX | L43: =SUM(L16+L28+L41) -> 29.9 | M43: XXX | N43: XXX | O43: XXX | P43: XXX | Q43: X | R43: =SUM(R16+R28+R41) -> 22 | S43: =SUM(S16+S28+S41) -> 0 | T43: =SUM(T16+T28+T41) -> 17 | U43: =SUM(U16+U28+U41) -> 3 | V43: XXX
A44: MMi | B44: =AVERAGE(B6:B15,B18:B27,B30:B40) -> 0.3451612903 | C44: 2.870967742 | D44: -2.190322581 | E44: -2.935483871 | F44: 75.67741935 | G44: 85.28387097 | H44: 6.251612903 | I44: 3.295652174 | J44: XX | L44: =AVERAGE(L6:L15,L18:L27,L30:L40) -> 1.573684211 | M44: =AVERAGE(M6:M15,M18:M27,M30:M40) -> 1012.864516 | N44: =AVERAGE(N6:N15,N18:N27,N30:N40) -> -1.880645161 | O44: =AVERAGE(O6:O15,O18:O27,O30:O40) -> 9.65483871 | P44: =AVERAGE(P17,P29,P42) -> 1.351515152 | Q44: X | R44: XX | S44: XX | T44: XX | U44: XX | V44: =AVERAGE(V17,V29,V42) -> 40.29090909
B46: Norm | C46: % v N.- | D46: Abw. | E46: Tage mit | L46: Niederschlag mm | P46: Sonnenscheindauer Std.
B47: wert | C47: wert | D47: K | E47: Max.d.Lufttemp.°C | L47: >/= 0,1 | O47: =SUM(AC7:AC9) -> 22 | P47: ohne Sonne | V47: =SUM(Z17:Z19) -> 12
A48: TTT | B48: 0.5 | C48: XXXX | D48: =SUM(B44-B48) -> -0.1548387097 | E48: Tropentag/Hitzetag | I48: =SUM(Z7:Z9) -> 0 | L48: >/= 1,0 | O48: =SUM(AD7:AD9) -> 13 | P48: 0,1 bis 0,9 | V48: =SUM(AA17:AA19) -> 11
A49: RRR | B49: 45 | C49: =SUM(I43*100/B49) -> 168.4444444 | D49: XXXX | E49: Sommertag | I49: =SUM(AA7:AA9) -> 0 | L49: >/= 3,0 | O49: =SUM(AE7:AE9) -> 9 | P49: >/= 10,0 | V49: =SUM(AB17:AB19) -> 0
A50: sss | B50: 64 | C50: =SUM(L43*100/B50) -> 46.71875 | D50: XXXX | E50: Eistag | I50: =SUM(AB7:AB9) -> 6 | L50: >/=10,0 | O50: =SUM(AF7:AF9) -> 2 | P50: Schneedecke cm
A51: astr. | D51: XXXX | E51: Polartag | I51: 0 | L51: >/= 20,0 | O51: =SUM(AG7:AG9) -> 0 | P51: >/= 0 | V51: =SUM(AC17:AC19) -> 10
A52: mgl. | B52: 264 | C52: =SUM(L43*100/B52) -> 11.32575758 | D52: XXXX | E52: Min.d.Lufttemp.°C | L52: Rel. Luftfeuchte 14 Uhr | P52: >/= 3 | V52: =SUM(AD17:AD19) -> 5
A53: sss | D53: XXXX | E53: Frosttag | I53: =SUM(Z12:Z14) -> 18 | L53: >/=70% | O53: =SUM(AC12:AC14) -> 21 | P53: >/= 10 | V53: =SUM(AE17:AE19) -> 2
E54: Tropennacht | I54: =SUM(AB12:AB14) -> 0 | L54: </=40% | O54: =SUM(AE12:AE14) -> 0
E57: Unter "Tage mit" sind die Angaben Bft 6 & Bft 8 nicht 10 min. - Mittel sonder 2,5 s - Werte.
E58: Wenn ein Wert auch mit einem 10 min. - Wert erreicht wird, erfolgt eine rote Markierung.
E59: Dies gilt rückwirkend bis November 2012.
F113: Tage mit Bft 6 /8 eigentlich in 10 min. - Mittel

Sheet Sichtst.
E1: Sichtweitenstatistik
B5: Wetterstation: Köttewitz | F5: Monat: | G5: Januar | K5: Jahr: | L5: 2019
A7: Dat. | B7: Nebeldauer | C7: Nebel | D7: Dunst | E7: Sicht | F7: Sicht | G7: Sicht | H7: Sicht
B8: in St. u. Min. | E8: mittel | F8: normal | G8: gut | H8: sehr gut
A9: 01. | E9: 1 | F9: 1 | N9: =IF(ISNUMBER(B9),B9*24," ") ->  | O9: =IF(ISNUMBER(N9),IF(N9<1,1," ")," ") ->  | P9: =IF(ISNUMBER(N9),IF(N9<8,2," ")," ") ->  | Q9: =IF(ISNUMBER(N9),IF(N9<24,3," ")," ") ->  | R9: =MIN(O9:Q9) -> 0
A10: 02. | E10: 1 | F10: 1 | R10: 0
A11: 03. | F11: 1 | G11: 1 | R11: 0
A12: 04. | D12: 1 | E12: 1 | F12: 1 | R12: 0
A13: 05. | D13: 1 | E13: 1 | F13: 1 | R13: 0
A14: 06. | D14: 1 | E14: 1 | F14: 1 | G14: 1 | R14: 0
A15: 07. | D15: 1 | E15: 1 | F15: 1 | R15: 0
A16: 08. | E16: 1 | F16: 1 | R16: 0
A17: 09. | D17: 1 | R17: 0
A18: 10. | D18: 1 | E18: 1 | F18: 1 | G18: 1 | R18: 0
A19: 11. | D19: 1 | E19: 1 | F19: 1 | G19: 1 | R19: 0
A20: 12. | E20: 1 | F20: 1 | R20: 0
A21: 13. | E21: 1 | F21: 1 | G21: 1 | R21: 0
A22: 14. | D22: 1 | E22: 1 | F22: 1 | G22: 1 | R22: 0
A23: 15. | F23: 1 | R23: 0
A24: 16. | F24: 1 | G24: 1 | R24: 0
A25: 17. | F25: 1 | G25: 1 | R25: 0
A26: 18. | F26: 1 | R26: 0
A27: 19. | F27: 1 | R27: 0
A28: 20. | E28: 1 | F28: 1 | R28: 0
A29: 21. | D29: 1 | E29: 1 | R29: 0
A30: 22. | D30: 1 | E30: 1 | R30: 0
A31: 23. | D31: 1 | E31: 1 | R31: 0
A32: 24. | D32: 1 | E32: 1 | R32: 0
A33: 25. | D33: 1 | E33: 1 | R33: 0
A34: 26. | D34: 1 | E34: 1 | F34: 1 | R34: 0
A35: 27. | F35: 1 | G35: 1 | H35: 1
A36: 28. | F36: 1 | G36: 1 | H36: 1
A37: 29. | D37: 1 | E37: 1 | F37: 1
A38: 30. | F38: 1
A39: 31. | F39: 1
A40: Su. | B40: =SUM(B9:B39) -> 00:00:00 | C40: 0 | D40: 15 | E40: 20 | F40: 25 | G40: 10 | H40: 2
B42: Anzahl der Nebeltage : | E42: =SUM(C40) -> 0
B43: Anzahl der Tage Sicht >= 50 km : | E43: =SUM(G40) -> 10

Sheet Monatsdiagramm
A1: Klimadiagramm | C1: Wetterstation Köttewitz | I1: (214 m ü. NHN)
A3: Januar 2019
C5: aktuell | D5: langj. Mittel | E5: Abw. vom lj. Mittel
B6: höchste Temperatur (°C): | C6: =MAX('Daten für Diagr.'!C2:C32) -> 7.9 | D6: am | E6: 2019-01-01
B7: mittlere Temperatur (°C): | C7: ='Daten für Diagr.'!B33 -> 0.3451612903 | D7: =Kurztab.!B48 -> 0.5 | E7: =C7-D7 -> -0.1548387097 | F7: K
B8: tiefste Temperatur (°C): | C8: =MIN('Daten für Diagr.'!D2:D32) -> -9.4 | D8: am | E8: 2019-01-22
B9: Niederschlagshöhe (mm): | C9: =Kurztab.!I43 -> 75.8 | D9: =Kurztab.!B49 -> 45 | E9: =100/D9*C9 -> 168.4444444 | F9: %
B10: Sonnenscheindauer (Std.)*: | C10: =Kurztab.!L43 -> 29.9 | D10: =Kurztab.!B50 -> 64 | E10: =100/D10*C10 -> 46.71875 | F10: %
A66: *Die Wetterstation kann, durch geographische Hindernisse, nicht die maximal mögliche Sonnenscheindauer aufzeichnen. Es gilt ein Übergangsprozentsatz von:
A67: Dez 30 %; Okt/Nov & Jan/Feb 40 %; Mär & Sep 65 %; Apr & Aug 80 %; Mai - Jul 90 %. Durch Baumfällarbeiten seit Orkan Herwart (Okt 2017) Okt & Feb 50 %.
A68: Diese Werte entsprechend annähernd 100 % (Normalwert Köttewitz). Nach 10 Jahren erfolgt die Umstellung des Prozentsatzes nach der örtlichen Aufzeichnung.

Sheet Daten für Diagr.
B1: Td | C1: Tmax | D1: Tmin | E1: RR | F1: Schnee | G1: Sonne | H1: Luftdr. | I1: MWT | J1: GWL | K1: Name | L1: Sonstiges
A2: 2019-01-01 | B2: 6.4 | C2: 7.9 | D2: 2.8 | E2: 0.8 | G2: 0.4 | H2: 1020.8 | I2: 0.45 | J2: Nz | K2: T Zeetje | L2: Gegen 16:00 Uhr; 19:30 Uhr mäßiger Regen (WW 63).
A3: 2019-01-02 | B3: 0.8 | C3: 2.8 | D3: -1.2 | E3: 0.9 | H3: 1023.2 | I3: 0.45 | L3: Gegen 18:30 Uhr leichter Schneegraupelschauer (WW 87). Gegen 08:00 Uhr; Gegen 15:00 Uhr mäßiger Schneeschauer (WW 86). Gegen 12:00 Uhr; Gegen 21:00 Uhr leichter Schneeschauer (WW 85). In der Nacht leichte Regenschauer (WW 80).
A4: 2019-01-03 | B4: -1.6 | C4: -0.4 | D4: -3.4 | E4: 0.2 | F4: 0 | H4: 1032.6 | I4: 0.45 | J4: NWa | K4: H Angela
A5: 2019-01-04 | B5: -0.4 | C5: 2.8 | D5: -4.3 | E5: 3.2 | F5: 1 | H5: 1030.1 | I5: 0.4
A6: 2019-01-05 | B6: 4.6 | C6: 6.5 | D6: 2.7 | E6: 8 | F6: 0 | H6: 1020.1 | I6: 0.4
A7: 2019-01-06 | B7: 0.9 | C7: 2.9 | D7: 0.1 | E7: 0.5 | H7: 1027.3 | I7: 0.4 | L7: U.a. Graupelschauer (WW 87).
A8: 2019-01-07 | B8: 2.4 | C8: 4.8 | D8: 0.5 | E8: 5.7 | H8: 1027.6 | I8: 0.35
A9: 2019-01-08 | B9: 3.8 | C9: 5.1 | D9: 0.8 | E9: 13.1 | F9: 0 | G9: 0.1 | H9: 1006.3 | I9: 0.35 | J9: NWz | K9: T Benjamin
A10: 2019-01-09 | B10: 0.3 | C10: 1.1 | D10: 0.1 | E10: 13.2 | F10: 4 | H10: 1005.4 | I10: 0.35 | J10: Nz
A11: 2019-01-10 | B11: -0.1 | C11: 0.7 | D11: -1.9 | E11: 1.1 | F11: 12 | G11: 0.5 | H11: 1020.6 | I11: 0.35 | J11: NWa | K11: (H Angela) | L11: U.a. Graupelschauer (WW 87).
A12: 2019-01-11 | B12: -0.2 | C12: 2.7 | D12: -2.5 | E12: 4.8 | F12: 10 | H12: 1019.9 | I12: 0.35
A13: 2019-01-12 | B13: 3.4 | C13: 4.5 | D13: 2.6 | E13: 2 | F13: 6 | G13: 0.2 | H13: 1013.3 | I13: 0.35 | J13: NWz | K13: T Florenz
A14: 2019-01-13 | B14: 4.9 | C14: 7.1 | D14: 3.5 | E14: 5.4 | F14: 0 | H14: 999.8 | I14: 0.4
A15: 2019-01-14 | B15: 1.8 | C15: 5.6 | D15: -0.9 | E15: 1.4 | F15: 0 | G15: 0.3 | H15: 1002.2 | I15: 0.4 | L15: Gegen 15:30 Uhr Graupelschauer mit Schnee (WW 87). Gegen 13:00 Uhr leichter Schneeschauer (WW 85). Gegen 01:00 Uhr mäßiger Regenschauer (WW 81).
A16: 2019-01-15 | B16: 2.4 | C16: 4.6 | D16: 0 | E16: 3.6 | F16: 1 | G16: 0.1 | H16: 1012.5 | I16: 0.4 | K16: T Gerd
A17: 2019-01-16 | B17: 3.9 | C17: 6.3 | D17: 0.9 | E17: 0.1 | F17: 0 | H17: 1010.1 | I17: 0.4 | K17: T Hinne
A18: 2019-01-17 | B18: 4.8 | C18: 6.9 | D18: 0.9 | E18: 0.2 | F18: 0 | G18: 0.1 | H18: 1002.9 | I18: 0.4
A19: 2019-01-18 | B19: -0.8 | C19: 2.3 | D19: -4.3 | F19: 1 | G19: 0.1 | H19: 1016.3 | I19: 0.45 | J19: U | K19: H Brigida | L19: Am Abend leichter Regenschauer (WW 80).
A20: 2019-01-19 | B20: -3.5 | C20: 1.2 | D20: -6.7 | F20: 0 | G20: 3.3 | H20: 1021.1 | I20: 0.45 | J20: BM | L20: Vor 06:00 Uhr leichter Graupelschauer (WW 87).
A21: 2019-01-20 | B21: -4.2 | C21: 0.3 | D21: -7.5 | G21: 3.7 | H21: 1019.6 | I21: 0.45
A22: 2019-01-21 | B22: -6.2 | C22: -2 | D22: -9.1 | G22: 3.2 | H22: 1023.3 | I22: 0.45
A23: 2019-01-22 | B23: -5.9 | C23: -1.1 | D23: -9.4 | G23: 3.7 | H23: 1014 | I23: 0.45
A24: 2019-01-23 | B24: -5.9 | C24: -1.4 | D24: -9.1 | G24: 3.8 | H24: 1004.7 | I24: 0.5 | J24: TrM | K24: T Klaus
A25: 2019-01-24 | B25: -5.3 | C25: -3.3 | D25: -8.5 | E25: 0.1 | F25: 0 | G25: 0.1 | H25: 1011.3 | I25: 0.5 | L25: Am Abend Schneeflocken/leichter Schneefall (WW 70/71).
A26: 2019-01-25 | B26: -3.9 | C26: -2.4 | D26: -5.6 | E26: 2.4 | F26: 1 | G26: 0.5 | H26: 1015.5 | I26: 0.5 | K26: T Laszlo | L26: In der Nacht bis zum Vormittag Schneeflocken/leichter Schneefall (WW 70/71).
A27: 2019-01-26 | B27: 1.3 | C27: 4.2 | D27: -3.1 | E27: 8.4 | F27: 5 | H27: 1005.7 | I27: 0.5 | J27: Wz | K27: T Martin | L27: In der Nacht leichter/mäßiger Schneefall (WW 71/73). Von 09:00 Uhr - 10:29 Uhr mäßiger Schneeregen (WW 69). Von 10:30 Uhr - 19:09 Uhr mäßiger Regen (WW 63).
A28: 2019-01-27 | B28: 4.3 | C28: 6 | D28: 2.6 | E28: 0.1 | F28: 0 | G28: 0.6 | H28: 993.1 | I28: 0.5 | J28: TrM
A29: 2019-01-28 | B29: 3.4 | C29: 5.8 | D29: 1.8 | E29: 0.6 | F29: 0 | G29: 1.7 | H29: 993.1 | I29: 0.55
A30: 2019-01-29 | B30: 0.4 | C30: 2.2 | D30: -3.3 | F30: 1 | H30: 1004.2 | I30: 0.55 | J30: TrW | K30: T Oskar
A31: 2019-01-30 | B31: -1.1 | C31: 2 | D31: -4.2 | F31: 0 | G31: 4 | H31: 1001 | I31: 0.55
A32: 2019-01-31 | B32: 0 | C32: 3.3 | D32: -2.2 | G32: 3.5 | H32: 1001.2 | I32: 0.55
A33: Durchschnitt | B33: =AVERAGE(B2:B32) -> 0.3451612903 | C33: =AVERAGE(C2:C32) -> 2.870967742 | D33: =AVERAGE(D2:D32) -> -2.190322581 | E33: - | G33: =AVERAGE(G2:G32) -> 1.573684211 | H33: =AVERAGE(H2:H32) -> 1012.864516 | I33: =AVERAGE(I2:I32) -> 0.4387096774
A34: Mittel | B34: 0.5 | E34: 45 | F34: - | G34: 64 | H34: 1018.9
A90: 1
A91: 2
A92: 3
A93: 4
A94: 5
A95: 6
A96: 7
A97: 8
A98: 9
A99: 10
A100: 11
A101: 12
A102: 13
A103: 14
A104: 15
A105: 16
A106: 17
A107: 18
A108: 19
A109: 20
A110: 21
A111: 22
A112: 23
A113: 24
A114: 25
A115: 26
A116: 27
A117: 28
A118: 29
A119: 30
A120: 31

Sheet Erdboden
F1: Erdbodenstatistik
B3: Wetterstation: | C3: Köttewitz | E3: Monat: | F3: Januar | J3: Jahr: | K3: 2019
A5: Dat. | B5: Temperatur | C5: Temperatur | D5: Temperatur | E5: Temperatur | F5: NN | G5: 0 °C - Grenze | H5: 5 °C - Grenze | I5: 10 °C - Grenze | J5: 15 °C - Grenze | K5: 20 °C - Grenze
B6: 5 cm | C6: -10 cm | D6: - 20 cm | E6: - 35 cm
A7: 01. | B7: 6,1 °C/7,8 °C/2,8 °C | C7: 5,6 °C/6,7 °C/5,0 °C | D7: 5,6 °C/6,1 °C/5,6 °C | E7: 5,6 °C/5,6 °C/5,6 °C | F7: t | G7: > 50 cm | H7: > 50 cm
A8: 02. | B8: 1,7 °C/0,6 °C/-1,1 °C | C8: 3,3 °C/2,8 °C/2,2 °C | D8: 4,4 °C/3,9 °C/3,3 °C | E8: 5,6 °C/5,0 °C/5,0 °C | F8: t | G8: > 50 cm | H8: < 33 > 50 cm
A9: 03. | B9: -2,2 °C/0,0 °C/-2,2 °C | C9: 1,7 °C/1,7 °C/1,1 °C | D9: 2,2 °C/2,2 °C/2,2 °C | E9: 4,4 °C/3,9 °C/3,9 °C | F9: n | G9: < 3 > 50 cm
A10: 04. | B10: -2,8 °C/1,7 °C/1,1 °C | C10: 1,1 °C/1,1 °C/1,1 °C | D10: 1,7 °C/1,7 °C/1,7 °C | E10: 3,3 °C/3,3 °C/3,3 °C | F10: t | G10: > 50 cm
A11: 05. | B11: 3,3 °C/6,1 °C/4,4 °C | C11: 1,7 °C/3,9 °C/3,9 °C | D11: 2,2 °C/3,3 °C/3,9 °C | E11: 3,3 °C/3,3 °C/3,9 °C | F11: t | G11: > 50 cm
A12: 06. | B12: 0,6 °C/1,1 °C/1,1 °C | C12: 2,8 °C/2,8 °C/2,2 °C | D12: 3,3 °C/2,8 °C/2,8 °C | E12: 3,9 °C/3,9 °C/3,9 °C | F12: t | G12: > 50 cm
A13: 07. | B13: 0,6 °C/3,9 °C/2,8 °C | C13: 2,2 °C/3,3 °C/3,3 °C | D13: 2,8 °C/3,3 °C/3,3 °C | E13: 3,9 °C/3,9 °C/3,9 °C | F13: t | G13: > 50 cm
A14: 08. | B14: 3,3 °C/3,9 °C/2,2 °C | C14: 3,3 °C/3,9 °C/3,3 °C | D14: 3,3 °C/3,9 °C/3,9 °C | E14: 3,9 °C/3,9 °C/3,9 °C | F14: t | G14: > 50 cm
A15: 09. | B15: 0,0 °C/0,0 °C/0,0 °C | C15: 1,7 °C/1,7 °C/1,7 °C | D15: 2,8 °C/2,2 °C/2,2 °C | E15: 3,9 °C/3,3 °C/3,3 °C | F15: t | G15: > 50 cm
A16: 10. | B16: 0,0 °C/1,1 °C/-1,1 °C | C16: 1,7 °C/1,7 °C/1,1 °C | D16: 2,2 °C/2,2 °C/1,7 °C | E16: 3,3 °C/3,3 °C/3,3 °C | F16: t | G16: > 50 cm
A17: 11. | B17: -2,2 °C/0,0 °C/1,1 °C | C17: 1,1 °C/1,7 °C/1,7 °C | D17: 1,7 °C/1,7 °C/1,7 °C | E17: 2,8 °C/2,8 °C/2,8 °C | F17: t | G17: > 50 cm
A18: 12. | B18: 1,7 °C/4,4 °C/2,8 °C | C18: 1,7 °C/2,8 °C/2,8 °C | D18: 2,2 °C/3,3 °C/2,8 °C | E18: 2,8 °C/2,8 °C/2,8 °C | F18: t | G18: > 50 cm
A19: 13. | B19: 3,3 °C/4,4 °C/5,6 °C | C19: 2,8 °C/3,9 °C/4,4 °C | D19: 2,8 °C/3,3 °C/3,9 °C | E19: 3,3 °C/3,3 °C/3,3 °C | F19: t | G19: > 50 cm
A20: 14. | B20: 1,7 °C/0,0 °C/-1,7 °C | C20: 3,3 °C/2,8 °C/1,7 °C | D20: 3,3 °C/3,3 °C/2,2 °C | E20: 3,9 °C/3,9 °C/3,3 °C | F20: n | G20: > 50 cm
A21: 15. | B21: 0,0 °C/2,2 °C/3,3 °C | C21: 1,7 °C/2,2 °C/2,8 °C | D21: 2,2 °C/2,2 °C/2,8 °C | E21: 3,9 °C/3,3 °C/3,3 °C | F21: t | G21: > 50 cm
A22: 16. | B22: 3,3 °C/6,1 °C/1,1 °C | C22: 3,3 °C/4,4 °C/2,8 °C | D22: 3,3 °C/3,9 °C/3,3 °C | E22: 3,3 °C/3,3 °C/3,9 °C | F22: t | G22: > 50 cm
A23: 17. | B23: 4,4 °C/5,6 °C/2,2 °C | C23: 2,2 °C/3,9 °C/2,8 °C | D23: 2,8 °C/3,3 °C/3,3 °C | E23: 3,3 °C/3,3 °C/3,3 °C | F23: n | G23: > 50 cm
A24: 18. | B24: -0,6 °C/1,1 °C/-3,9 °C | C24: 1,7 °C/1,7 °C/1,1 °C | D24: 2,2 °C/2,2 °C/1,7 °C | E24: 3,3 °C/3,3 °C/2,8 °C | F24: n | G24: < 3 > 50 cm
A25: 19. | B25: -6,7 °C/0,0 °C/-6,1 °C | C25: 0,6 °C/0,6 °C/0,0 °C | D25: 1,1 °C/1,1 °C/1,1 °C | E25: 2,8 °C/2,8 °C/2,2 °C | F25: n | G25: < 9 > 50 cm
A26: 20. | B26: -7,8 °C/-1,7 °C/-6,7 °C | C26: -0,6 °C/0,0 °C/-0,6 °C | D26: 0,6 °C/0,6 °C/0,6 °C | E26: 2,2 °C/2,2 °C/1,7 °C | F26: h | G26: < 14 > 50 cm
A27: 21. | B27: -10,0 °C/-3,3 °C/-8,9 °C | C27: -1,7 °C/-1,1 °C/-1,7 °C | D27: 0,0 °C/0,0 °C/0,0 °C | E27: 1,7 °C/1,7 °C/1,7 °C | F27: n | G27: < 20 > 50 cm
A28: 22. | B28: -10,0 °C/-2,8 °C/-7,2 °C | C28: -2,8 °C/-1,7 °C/-2,8 °C | D28: -0,6 °C/-0,6 °C/-1,1 °C | E28: 1,1 °C/1,1 °C/1,1 °C | F28: h | G28: < 27 > 50 cm
A29: 23. | B29: -8,9 °C/-2,8 °C/-10,0 °C | C29: -3,3 °C/-2,2 °C/-2,8 °C | D29: -1,7 °C/-1,1 °C/-1,7 °C | E29: 1,1 °C/0,6 °C/0,6 °C | F29: n | G29: < 30 > 50 cm
A30: 24. | B30: -6,1 °C/-2,2 °C/-4,4 °C | C30: -2,8 °C/-1,7 °C/-1,7 °C | D30: -1,7 °C/-1,1 °C/-1,1 °C | E30: 0,6 °C/0,6 °C/0,6 °C | F30: t | G30: < 30 > 50 cm
A31: 25. | B31: -5,6 °C/-1,1 °C/-4,4 °C | C31: -1,7 °C/-1,1 °C/-1,1 °C | D31: -1,1 °C/-0,6 °C/-0,6 °C | E31: 0,6 °C/0,6 °C/0,6 °C | F31: t | G31: < 29 > 50 cm
A32: 26. | B32: -0,6 °C/1,1 °C/2,2 °C | C32: -1,1 °C/-0,6 °C/0,0 °C | D32: -0,6 °C/-0,6 °C/0,0 °C | E32: 0,6 °C/0,6 °C/0,0 °C | F32: t | G32: < 6;27 > 50 cm
A33: 27. | B33: 2,8 °C/6,1 °C/2,8 °C | C33: 0,0 °C/0,0 °C/0,0 °C | D33: 0,0 °C/0,0 °C/0,0 °C | E33: 0,0 °C/0,0 °C/0,0 °C | F33: t | G33: > 50 cm
A34: 28. | B34: 1,7 °C/6,1 °C/1,7 °C | C34: 0,0 °C/0,0 °C/0,0 °C | D34: 0,0 °C/0,0 °C/0,0 °C | E34: 0,6 °C/0,6 °C/0,6 °C | F34: t | G34: > 50 cm
A35: 29. | B35: -1,1 °C/2,8 °C/-3,3 °C | C35: 0,0 °C/0,0 °C/0,0 °C | D35: 0,0 °C/0,0 °C/0,0 °C | E35: 0,6 °C/0,6 °C/0,6 °C | F35: n | G35: < 10 > 50 cm
A36: 30. | B36: -4,4 °C/1,7 °C/-0,6 °C | C36: 0,0 °C/0,0 °C/0,0 °C | D36: 0,0 °C/0,0 °C/0,0 °C | E36: 0,6 °C/0,6 °C/0,6 °C | F36: n | G36: < 10 > 50 cm
A37: 31. | B37: -2,8 °C/2,2 °C/-0,6 °C | C37: 0,0 °C/0,0 °C/0,0 °C | D37: 0,0 °C/0,0 °C/0,0 °C | E37: 0,6 °C/0,6 °C/0,6 °C | F37: n | G37: < 10 > 50 cm
B39: Werte von 7 Uhr/14 Uhr/21 Uhr MEZ
B41: Mit Gelb markiert ist der Temperaturbereich des Erdbodens.
B43: Anzeige Zentibar (cb) | C43: Bodenbedingungen
B44: 0-20 | C44: Alle Böden sind ausreichend nass. Keine Bewässerung nötig.
B45: 20-40 | C45: Leichte Böden trocknen aus und brauchen Bewässerung, mittelschwere Böden sind gerade noch ausreichend feucht.
B46: 40-60 | C46: Leichte und mittelschwere Böden brauchen bei Pflanzen mit Hauptwurzeln in Sensortiefe Bewässerung. Schwere Böden sind gerade noch ausreichend feucht.
B47: 60-100 | C47: Alle Bodensorten brauchen bei Pflanzen mit Hauptwurzeln in Sensortiefe Bewässerung. Büsche zeigen auf leichten und steinigen Böden Trockenstress.
B48: 100-200 | C48: Trockener Boden. Ohne Bewässerung gibt es bei mitteltief wurzelnden Pflanzen (bis Buschgröße) bereits Trockenschäden auf allen Bodensorten.
